{"text_format":"1","workbook":"xlsx","n_sheets":1,"sheets":["الرئيسية "],"not_rendered":{"charts":0,"images":0,"macros":1,"external_links":0,"defined_names":1,"comments":0,"pivot_tables":0},"unopened":[],"bounds":{"document_bytes":16777216,"sheet_cells":100000,"rows_first":2000,"rows_last":500,"rows_between":2000,"halvings":0,"cell_chars":16384,"cell_head_chars":4096},"cells_cut":0,"cells_raw":0,"read":"whole","date_system":"1900"}

{"sheet":"الرئيسية ","index":0,"n_rows":164,"n_cols":49,"rows_kept":164,"cut":false,"hidden":false,"merged":[[1,22,3,22],[1,8,3,8],[1,10,3,10],[1,16,3,16],[1,4,3,4],[1,6,3,6],[1,14,3,14],[1,18,3,18],[0,8,0,15],[1,12,3,12],[1,0,3,0],[0,0,0,7],[1,2,3,2],[1,46,3,46],[0,34,0,47],[1,30,3,30],[0,16,0,27],[1,36,3,36],[1,42,3,42],[0,28,0,33],[1,34,3,34],[1,28,3,28],[1,44,3,44],[1,26,3,26],[1,32,3,32],[1,24,3,24],[1,38,3,38],[1,40,3,40],[1,20,3,20]]}
["الصف العاشر الأساسي",null,null,null,null,null,null,null,"الحادي عشر العلمي",null,null,null,null,null,null,null,"الحادي عشر الادبي ",null,null,null,null,null,null,null,null,null,null,null,"الثاني عشر العلمي",null,null,null,null,null,"الثاني عشر الادبي "]
["الرقم","أ","الرقم","ب","الرقم","ج","الرقم","د","الرقم","ا","الرقم","ب","الرقم","ج","الرقم","د","الرقم","أ","الرقم","ب","الرقم","ج","الرقم","د","الرقم","هـ","الرقم","و","الرقم","ا","الرقم","ب","الرقم","ج","الرقم","أ","الرقم","ب","الرقم","ج","الرقم","د ","الرقم","هـ","الرقم","و ","الرقم","ز"]
[null,"عدد طلاب الشعبة ",null,"عدد طلاب الشعبة ",null,"عدد طلاب الشعبة ",null,"عدد طلاب الشعبة ",null,"عدد طلاب الشعبة ",null,"عدد طلاب الشعبة ",null,"عدد طلاب الشعبة ",null,"عدد طلاب الشعبة ",null,"عدد طلاب الشعبة ",null,"عدد طلاب الشعبة ",null,"عدد طلاب الشعبة ",null,"عدد طلاب الشعبة ",null,"عدد طلاب الشعبة ",null,"عدد طلاب الشعبة ",null,"عدد طلاب الشعبة ",null,"عدد طلاب الشعبة ",null,"عدد طلاب الشعبة ",null,"عدد طلاب الشعبة ",null,"عدد طلاب الشعبة ",null,"عدد طلاب الشعبة ",null,"عدد طلاب الشعبة ",null,"عدد طلاب الشعبة ",null,"عدد طلاب الشعبة ",null,"عدد طلاب الشعبة "]
[null,{"$f":"COUNTA(B5:B69)","v":61},null,{"$f":"COUNTA(D5:D69)","v":48},null,47,null,47,null,{"$f":"COUNTA(J5:J219)","v":36},null,{"$f":"COUNTA(L5:L69)","v":34},null,{"$f":"COUNTA(N5:N69)","v":0},null,{"$f":"COUNTA(P5:P219)","v":0},null,{"$f":"COUNTA(R5:R219)","v":0},null,{"$f":"COUNTA(T5:T69)","v":0},null,{"$f":"COUNTA(V5:V100)","v":0},null,{"$f":"COUNTA(X5:X69)","v":0},null,{"$f":"COUNTA(Z5:Z69)","v":0},null,{"$f":"COUNTA(AB5:AB69)","v":0},null,{"$f":"COUNTA(AD5:AD69)","v":0},null,{"$f":"COUNTA(AF5:AF69)","v":0},null,{"$f":"COUNTA(AH5:AH69)","v":0},null,{"$f":"COUNTA(AJ5:AJ69)","v":0},null,{"$f":"COUNTA(AL5:AL69)","v":0},null,{"$f":"COUNTA(AN5:AN69)","v":0},null,{"$f":"COUNTA(AP5:AP69)","v":0},null,{"$f":"COUNTA(AR5:AR69)","v":0},null,{"$f":"COUNTA(AT5:AT69)","v":0},null,{"$f":"COUNTA(AV5:AV69)","v":0},{"$f":"SUM(A4:AV4)","v":273}]
[1,"محمد 1",1,"خالد 1",1,"حسن 1",1,"صلاح 1",1,"وسيم  1",1,"زياد 1",1]
[2,"محمد 10",2,"خالد 10",2,"حسن 10",2,"صلاح 2",2,"وسيم  2",2,"زياد 2",2]
[3,"محمد 11",3,"خالد 11",3,"حسن 11",3,"صلاح 3",3,"وسيم  3",3,"زياد 3",3]
[4,"محمد 12",4,"خالد 12",4,"حسن 12",4,"صلاح 4",4,"وسيم  4",4,"زياد 4",4]
[5,"محمد 13",5,"خالد 13",5,"حسن 13",5,"صلاح 5",5,"وسيم  5",5,"زياد 5",5]
[6,"محمد 14",6,"خالد 14",6,"حسن 14",6,"صلاح 6",6,"وسيم  6",6,"زياد 6",6]
[7,"محمد 15",7,"خالد 15",7,"حسن 15",7,"صلاح 7",7,"وسيم  7",7,"زياد 7",7]
[8,"محمد 16",8,"خالد 16",8,"حسن 16",8,"صلاح 8",8,"وسيم  8",8,"زياد 8",8]
[9,"محمد 17",9,"خالد 17",9,"حسن 17",9,"صلاح 9",9,"وسيم  9",9,"زياد 9",9]
[10,"محمد 18",10,"خالد 18",10,"حسن 18",10,"صلاح 10",10,"وسيم  10",10,"زياد 10",10]
[11,"محمد 19",11,"خالد 19",11,"حسن 19",11,"صلاح 11",11,"وسيم  11",11,"زياد 11",11]
[12,"محمد 2",12,"خالد 2",12,"حسن 2",12,"صلاح 12",12,"وسيم  12",12,"زياد 12",12]
[13,"محمد 20",13,"خالد 20",13,"حسن 20",13,"صلاح 13",13,"وسيم  13",13,"زياد 13",13]
[14,"محمد 21",14,"خالد 21",14,"حسن 21",14,"صلاح 14",14,"وسيم  14",14,"زياد 14",14]
[15,"محمد 22",15,"خالد 22",15,"حسن 22",15,"صلاح 15",15,"وسيم  15",15,"زياد 15",15]
[16,"محمد 23",16,"خالد 23",16,"حسن 23",16,"صلاح 16",16,"وسيم  16",16,"زياد 16",16]
[17,"محمد 24",17,"خالد 24",17,"حسن 24",17,"صلاح 17",17,"وسيم  17",17,"زياد 17",17]
[18,"محمد 25",18,"خالد 25",18,"حسن 25",18,"صلاح 18",18,"وسيم  18",18,"زياد 18",18]
[19,"محمد 26",19,"خالد 26",19,"حسن 26",19,"صلاح 19",19,"وسيم  19",19,"زياد 19",19]
[20,"محمد 27",20,"خالد 27",20,"حسن 27",20,"صلاح 20",20,"وسيم  20",20,"زياد 20",20]
[21,"محمد 28",21,"خالد 28",21,"حسن 28",21,"صلاح 21",21,"وسيم  21",21,"زياد 21",21]
[22,"محمد 29",22,"خالد 29",22,"حسن 29",22,"صلاح 22",22,"وسيم  22",22,"زياد 22",22]
[23,"محمد 3",23,"خالد 3",23,"حسن 3",23,"صلاح 23",23,"وسيم  23",23,"زياد 23",23]
[24,"محمد 30",24,"خالد 30",24,"حسن 30",24,"صلاح 24",24,"وسيم  24",24,"زياد 24",24]
[25,"محمد 31",25,"خالد 31",25,"حسن 31",25,"صلاح 25",25,"وسيم  25",25,"زياد 25",25]
[26,"محمد 32",26,"خالد 32",26,"حسن 32",26,"صلاح 26",26,"وسيم  26",26,"زياد 26",26]
[27,"محمد 33",27,"خالد 33",27,"حسن 33",27,"صلاح 27",27,"وسيم  27",27,"زياد 27",27]
[28,"محمد 34",28,"خالد 34",28,"حسن 34",28,"صلاح 28",28,"وسيم  28",28,"زياد 28",28]
[29,"محمد 35",29,"خالد 35",29,"حسن 35",29,"صلاح 29",29,"وسيم  29",29,"زياد 29",29]
[30,"محمد 36",30,"خالد 36",30,"حسن 36",30,"صلاح 30",30,"وسيم  30",30,"زياد 30",30]
[31,"محمد 37",31,"خالد 37",31,"حسن 37",31,"صلاح 31",31,"وسيم  31",31,"زياد 31",31]
[32,"محمد 38",32,"خالد 38",32,"حسن 38",32,"صلاح 32",32,"وسيم  32",32,"زياد 32",32]
[33,"محمد 39",33,"خالد 39",33,"حسن 39",33,"صلاح 33",33,"وسيم  33",33,"زياد 33",33]
[34,"محمد 4",34,"خالد 4",34,"حسن 4",34,"صلاح 34",34,"وسيم  34",34,"زياد 34",34]
[35,"محمد 40",35,"خالد 40",35,"حسن 40",35,"صلاح 35",35,"وسيم  35",35,null,35]
[36,"محمد 41",36,"خالد 41",36,"حسن 41",36,"صلاح 36",36,"وسيم  36",36,null,36]
[37,"محمد 42",37,"خالد 42",37,"حسن 42",37,"صلاح 37",37,null,37,null,37]
[38,"محمد 43",38,"خالد 43",38,"حسن 43",38,"صلاح 38",38,null,38,null,38]
[39,"محمد 44",39,"خالد 44",39,"حسن 44",39,"صلاح 39",39,null,39,null,39]
[40,"محمد 45",40,"خالد 45",40,"حسن 45",40,"صلاح 40",40,null,40,null,40]
[41,"محمد 46",41,"خالد 46",41,"حسن 46",41,"صلاح 41",41,null,41,null,41]
[42,"محمد 47",42,"خالد 47",42,"حسن 47",42,"صلاح 42",42,null,42,null,42]
[43,"محمد 48",43,"خالد 48",43,"حسن 5",43,"صلاح 43",43,null,43,null,43]
[44,"محمد 49",44,"خالد 5",44,"حسن 6",44,"صلاح 44",44,null,44,null,44]
[45,"محمد 5",45,"خالد 6",45,"حسن 7",45,"صلاح 45",45,null,45,null,45]
[46,"محمد 50",46,"خالد 7",46,"حسن 8",46,"صلاح 46",46,null,46,null,46]
[47,"محمد 51",47,"خالد 8",47,"حسن 9",47,"صلاح 47",47,null,47,null,47]
[48,"محمد 52",48,"خالد 9",48,null,48,null,48,null,48,null,48]
[49,"محمد 53",49,null,49,null,49,null,49,null,49,null,49]
[50,"محمد 54",50,null,50,null,50,null,50,null,50,null,50]
[51,"محمد 55",51,null,51,null,51,null,51,null,51,null,51]
[52,"محمد 56",52,null,52,null,52,null,52,null,52,null,52]
[53,"محمد 57",53,null,53,null,53,null,53,null,53,null,53]
[54,"محمد 58",54,null,54,null,54,null,54,null,54,null,54]
[55,"محمد 59",55,null,55,null,55,null,55,null,55,null,55]
[56,"محمد 6",56,null,56,null,56,null,56,null,56,null,56]
[57,"محمد 60",57,null,57,null,57,null,57,null,57,null,57]
[58,"محمد 61",58,null,58,null,58,null,58,null,58,null,58]
[59,"محمد 7",59,null,59,null,59,null,59,null,59,null,59]
[60,"محمد 8",60,null,60,null,60,null,60,null,60,null,60]
[61,"محمد 9",61,null,61,null,61,null,61,null,61,null,61]
[62,null,62,null,62,null,62,null,62,null,62,null,62]
[63,null,63,null,63,null,63,null,63,null,63,null,63]
[64,null,64,null,64,null,64,null,64,null,64,null,64]
[]
[]
[]
[]
[]
[]
[]
[]
[]
[]
[]
[]
[]
[]
[]
[]
[]
[]
[]
[null,null,null,null,null,null,null,null,84]
[null,null,null,null,null,null,null,null,85,null,null,null,null,null,null,null,85]
[null,null,null,null,null,null,null,null,86,null,null,null,null,null,null,null,86]
[null,null,null,null,null,null,null,null,87,null,null,null,null,null,null,null,87]
[null,null,null,null,null,null,null,null,88,null,null,null,null,null,null,null,88]
[null,null,null,null,null,null,null,null,89,null,null,null,null,null,null,null,89]
[null,null,null,null,null,null,null,null,90,null,null,null,null,null,null,null,90]
[null,null,null,null,null,null,null,null,91,null,null,null,null,null,null,null,91]
[null,null,null,null,null,null,null,null,92,null,null,null,null,null,null,null,92]
[null,null,null,null,null,null,null,null,93,null,null,null,null,null,null,null,93]
[null,null,null,null,null,null,null,null,94,null,null,null,null,null,null,null,94]
[null,null,null,null,null,null,null,null,95,null,null,null,null,null,null,null,95]
[null,null,null,null,null,null,null,null,96,null,null,null,null,null,null,null,96]
[null,null,null,null,null,null,null,null,97,null,null,null,null,null,null,null,97]
[null,null,null,null,null,null,null,null,98,null,null,null,null,null,null,null,98]
[null,null,null,null,null,null,null,null,99,null,null,null,null,null,null,null,99]
[null,null,null,null,null,null,null,null,100,null,null,null,null,null,null,null,100]
[null,null,null,null,null,null,null,null,null,null,null,null,null,null,null,null,101]
[null,null,null,null,null,null,null,null,null,null,null,null,null,null,null,null,102]
[null,null,null,null,null,null,null,null,null,null,null,null,null,null,null,null,103]
[null,null,null,null,null,null,null,null,null,null,null,null,null,null,null,null,104]
[null,null,null,null,null,null,null,null,null,null,null,null,null,null,null,null,105]
[null,null,null,null,null,null,null,null,null,null,null,null,null,null,null,null,106]
[null,null,null,null,null,null,null,null,null,null,null,null,null,null,null,null,107]
[null,null,null,null,null,null,null,null,null,null,null,null,null,null,null,null,108]
[null,null,null,null,null,null,null,null,null,null,null,null,null,null,null,null,109]
[null,null,null,null,null,null,null,null,null,null,null,null,null,null,null,null,110]
[null,null,null,null,null,null,null,null,null,null,null,null,null,null,null,null,111]
[null,null,null,null,null,null,null,null,null,null,null,null,null,null,null,null,112]
[null,null,null,null,null,null,null,null,null,null,null,null,null,null,null,null,113]
[null,null,null,null,null,null,null,null,null,null,null,null,null,null,null,null,114]
[null,null,null,null,null,null,null,null,null,null,null,null,null,null,null,null,115]
[null,null,null,null,null,null,null,null,null,null,null,null,null,null,null,null,116]
[null,null,null,null,null,null,null,null,null,null,null,null,null,null,null,null,117]
[null,null,null,null,null,null,null,null,null,null,null,null,null,null,null,null,118]
[null,null,null,null,null,null,null,null,null,null,null,null,null,null,null,null,119]
[null,null,null,null,null,null,null,null,null,null,null,null,null,null,null,null,120]
[null,null,null,null,null,null,null,null,null,null,null,null,null,null,null,null,121]
[null,null,null,null,null,null,null,null,null,null,null,null,null,null,null,null,122]
[null,null,null,null,null,null,null,null,null,null,null,null,null,null,null,null,123]
[null,null,null,null,null,null,null,null,null,null,null,null,null,null,null,null,124]
[null,null,null,null,null,null,null,null,null,null,null,null,null,null,null,null,125]
[null,null,null,null,null,null,null,null,null,null,null,null,null,null,null,null,126]
[null,null,null,null,null,null,null,null,null,null,null,null,null,null,null,null,127]
[null,null,null,null,null,null,null,null,null,null,null,null,null,null,null,null,128]
[null,null,null,null,null,null,null,null,null,null,null,null,null,null,null,null,129]
[null,null,null,null,null,null,null,null,null,null,null,null,null,null,null,null,130]
[null,null,null,null,null,null,null,null,null,null,null,null,null,null,null,null,131]
[null,null,null,null,null,null,null,null,null,null,null,null,null,null,null,null,132]
[null,null,null,null,null,null,null,null,null,null,null,null,null,null,null,null,133]
[null,null,null,null,null,null,null,null,null,null,null,null,null,null,null,null,134]
[null,null,null,null,null,null,null,null,null,null,null,null,null,null,null,null,135]
[null,null,null,null,null,null,null,null,null,null,null,null,null,null,null,null,136]
[null,null,null,null,null,null,null,null,null,null,null,null,null,null,null,null,137]
[null,null,null,null,null,null,null,null,null,null,null,null,null,null,null,null,138]
[null,null,null,null,null,null,null,null,null,null,null,null,null,null,null,null,139]
[null,null,null,null,null,null,null,null,null,null,null,null,null,null,null,null,140]
[null,null,null,null,null,null,null,null,null,null,null,null,null,null,null,null,141]
[null,null,null,null,null,null,null,null,null,null,null,null,null,null,null,null,142]
[null,null,null,null,null,null,null,null,null,null,null,null,null,null,null,null,143]
[null,null,null,null,null,null,null,null,null,null,null,null,null,null,null,null,144]
[null,null,null,null,null,null,null,null,null,null,null,null,null,null,null,null,145]
[null,null,null,null,null,null,null,null,null,null,null,null,null,null,null,null,146]
[null,null,null,null,null,null,null,null,null,null,null,null,null,null,null,null,147]
[null,null,null,null,null,null,null,null,null,null,null,null,null,null,null,null,148]
[null,null,null,null,null,null,null,null,null,null,null,null,null,null,null,null,149]
[null,null,null,null,null,null,null,null,null,null,null,null,null,null,null,null,150]
[null,null,null,null,null,null,null,null,null,null,null,null,null,null,null,null,151]
[null,null,null,null,null,null,null,null,null,null,null,null,null,null,null,null,152]
[null,null,null,null,null,null,null,null,null,null,null,null,null,null,null,null,153]
[null,null,null,null,null,null,null,null,null,null,null,null,null,null,null,null,154]
[null,null,null,null,null,null,null,null,null,null,null,null,null,null,null,null,155]
[null,null,null,null,null,null,null,null,null,null,null,null,null,null,null,null,156]
[null,null,null,null,null,null,null,null,null,null,null,null,null,null,null,null,157]
[null,null,null,null,null,null,null,null,null,null,null,null,null,null,null,null,158]
[null,null,null,null,null,null,null,null,null,null,null,null,null,null,null,null,159]
[null,null,null,null,null,null,null,null,null,null,null,null,null,null,null,null,160]